[Event "*** Titled Tuesday Blitz"]
[Site "Chess.com"]
[Date "2021.02.09"]
[Round "9"]
[White "igorcadilhac"]
[Black "xberli"]
[Result "1-0"]
[WhiteElo "2326"]
[BlackElo "2449"]
[TimeControl "180+1"]
[EndTime "11:45:47 PST"]
[Termination "igorcadilhac won by resignation"]

1. e4 {[%clk 0:03:00.9]} 1... d5 {[%clk 0:02:58.8]} 2. exd5 {[%clk 0:02:59.7]}
2... c6 {[%clk 0:02:55.9]} 3. dxc6 {[%clk 0:02:59]} 3... Nxc6 {[%clk 0:02:56.8]}
4. Nf3 {[%clk 0:02:55.8]} 4... e5 {[%clk 0:02:53.6]} 5. Bb5 {[%clk 0:02:49]}
5... e4 {[%clk 0:02:47.8]} 6. Qe2 {[%clk 0:02:41.7]} 6... Nf6 {[%clk 0:02:45.1]}
7. Ne5 {[%clk 0:02:35.6]} 7... Qc7 {[%clk 0:02:11.2]} 8. d4 {[%clk 0:02:29.1]}
8... Bd6 {[%clk 0:01:59.9]} 9. Bf4 {[%clk 0:01:54.8]} 9... O-O {[%clk
0:01:57.8]} 10. Bxc6 {[%clk 0:01:52.8]} 10... bxc6 {[%clk 0:01:57.4]} 11. Nc3
{[%clk 0:01:52]} 11... Nd5 {[%clk 0:01:50.9]} 12. Bg3 {[%clk 0:01:18.5]} 12...
e3 {[%clk 0:01:11]} 13. fxe3 {[%clk 0:01:16.2]} 13... Nxc3 {[%clk 0:01:10.6]}
14. bxc3 {[%clk 0:01:16.1]} 14... f6 {[%clk 0:01:08.2]} 15. Nd3 {[%clk
0:00:44.9]} 15... Bxg3+ {[%clk 0:01:06]} 16. hxg3 {[%clk 0:00:45.4]} 16... Qxg3+
{[%clk 0:01:05.9]} 17. Qf2 {[%clk 0:00:45.5]} 17... Qd6 {[%clk 0:00:53.2]} 18.
Qf4 {[%clk 0:00:42.2]} 18... Qd5 {[%clk 0:00:46.9]} 19. Qf3 {[%clk 0:00:37.5]}
19... Bf5 {[%clk 0:00:33.8]} 20. Kd2 {[%clk 0:00:34.7]} 20... Be4 {[%clk
0:00:31.6]} 21. Qh3 {[%clk 0:00:26.7]} 21... a5 {[%clk 0:00:28.8]} 22. Nf4
{[%clk 0:00:26.7]} 22... Qf5 {[%clk 0:00:24.1]} 23. Qxf5 {[%clk 0:00:20.5]}
23... Bxf5 {[%clk 0:00:25]} 24. Rh5 {[%clk 0:00:19.4]} 24... g6 {[%clk
0:00:23.6]} 25. Rh6 {[%clk 0:00:17.1]} 25... Rab8 {[%clk 0:00:22.8]} 26. Nd3
{[%clk 0:00:15.1]} 26... Rfe8 {[%clk 0:00:20.6]} 27. Rah1 {[%clk 0:00:13.2]}
27... g5 {[%clk 0:00:19.8]} 28. Rxf6 {[%clk 0:00:12.6]} 28... Bg6 {[%clk
0:00:19.2]} 29. Rxc6 {[%clk 0:00:12.2]} 29... a4 {[%clk 0:00:16.8]} 30. Rc5
{[%clk 0:00:12.1]} 30... a3 {[%clk 0:00:15]} 31. Rxg5 {[%clk 0:00:12]} 31... Ra8
{[%clk 0:00:15]} 32. Ne5 {[%clk 0:00:10.5]} 32... Kg7 {[%clk 0:00:15]} 33. Nxg6
{[%clk 0:00:07.1]} 33... hxg6 {[%clk 0:00:15.9]} 34. Rc5 {[%clk 0:00:07.1]}
34... Reb8 {[%clk 0:00:15]} 35. Rc7+ {[%clk 0:00:06.6]} 35... Kf6 {[%clk
0:00:14.9]} 36. Rf1+ {[%clk 0:00:07.2]} 36... Kg5 {[%clk 0:00:15.1]} 37. Rf4
{[%clk 0:00:04.7]} 37... Rb2 {[%clk 0:00:13.4]} 38. Rc5+ {[%clk 0:00:04.3]}
38... Kh6 {[%clk 0:00:13.2]} 39. Rh4+ {[%clk 0:00:04.8]} 39... Kg7 {[%clk
0:00:13.5]} 40. Rc7+ {[%clk 0:00:05.1]} 40... Kf6 {[%clk 0:00:13.7]} 41. Rf4+
{[%clk 0:00:05.3]} 41... Kg5 {[%clk 0:00:13.9]} 42. Rh7 {[%clk 0:00:04.5]} 42...
Rxa2 {[%clk 0:00:12.7]} 43. Ke2 {[%clk 0:00:04.8]} 43... Rxc2+ {[%clk
0:00:12.1]} 44. Kf3 {[%clk 0:00:05.2]} 44... Rf2+ {[%clk 0:00:04.9]} 45. Kxf2
{[%clk 0:00:04.8]} 45... a2 {[%clk 0:00:05.2]} 46. Rh1 {[%clk 0:00:04.2]} 46...
a1=Q {[%clk 0:00:05.1]} 47. Rxa1 {[%clk 0:00:04.6]} 47... Rxa1 {[%clk
0:00:05.7]} 48. c4 {[%clk 0:00:04.7]} 48... Rc1 {[%clk 0:00:05.2]} 49. c5 {[%clk
0:00:04.6]} 49... Kh5 {[%clk 0:00:05.1]} 50. Kf3 {[%clk 0:00:04.8]} 50... g5
{[%clk 0:00:05.2]} 51. Rf5 {[%clk 0:00:03.3]} 51... Kg6 {[%clk 0:00:04.4]} 52.
Ke4 {[%clk 0:00:03.9]} 52... Rc2 {[%clk 0:00:03.5]} 53. Re5 {[%clk 0:00:03.4]}
53... Rxg2 {[%clk 0:00:03.3]} 54. c6 {[%clk 0:00:03.7]} 54... Rc2 {[%clk
0:00:03.7]} 55. Rc5 {[%clk 0:00:04.2]} 55... Ra2 {[%clk 0:00:03.5]} 56. c7
{[%clk 0:00:04.4]} 56... Ra8 {[%clk 0:00:04.1]} 57. c8=Q {[%clk 0:00:05]} 57...
Rxc8 {[%clk 0:00:04.7]} 58. Rxc8 {[%clk 0:00:05.7]} 58... g4 {[%clk 0:00:05.1]}
59. Rg8+ {[%clk 0:00:06.1]} 59... Kh5 {[%clk 0:00:05.8]} 60. Rxg4 {[%clk
0:00:07]} 60... Kxg4 {[%clk 0:00:06.7]} 61. d5 {[%clk 0:00:07.5]} 61... Kg3
{[%clk 0:00:07.4]} 62. d6 {[%clk 0:00:07.7]} 62... Kf2 {[%clk 0:00:08.3]} 63. d7
{[%clk 0:00:08.6]} 63... Ke2 {[%clk 0:00:09.2]} 64. d8=Q {[%clk 0:00:09.5]}
64... Ke1 {[%clk 0:00:10.1]} 1-0

[Event "*** Titled Tuesday Blitz"]
[Site "Chess.com"]
[Date "2021.02.09"]
[Round "9"]
[White "ShahMatKanal"]
[Black "LilRag"]
[Result "0-1"]
[WhiteElo "2481"]
[BlackElo "2607"]
[TimeControl "180+1"]
[EndTime "11:45:48 PST"]
[Termination "LilRag won by resignation"]

1. d4 {[%clk 0:02:50.3]} 1... Nf6 {[%clk 0:02:59.6]} 2. Nf3 {[%clk 0:02:48.8]}
2... e6 {[%clk 0:02:58.4]} 3. g3 {[%clk 0:02:47.9]} 3... b6 {[%clk 0:02:58.4]}
4. Bg2 {[%clk 0:02:48.2]} 4... Bb7 {[%clk 0:02:59]} 5. O-O {[%clk 0:02:48.7]}
5... Be7 {[%clk 0:02:59.5]} 6. c4 {[%clk 0:02:49]} 6... O-O {[%clk 0:02:59.9]}
7. Nc3 {[%clk 0:02:49.5]} 7... d5 {[%clk 0:03:00.2]} 8. b3 {[%clk 0:02:36.1]}
8... dxc4 {[%clk 0:02:59]} 9. bxc4 {[%clk 0:02:36.1]} 9... c5 {[%clk 0:02:59.5]}
10. d5 {[%clk 0:02:17]} 10... exd5 {[%clk 0:02:57.2]} 11. Nh4 {[%clk 0:02:17.1]}
11... Ne4 {[%clk 0:02:43.2]} 12. Nxd5 {[%clk 0:02:05]} 12... Bxd5 {[%clk
0:02:42.9]} 13. cxd5 {[%clk 0:01:25.4]} 13... Nd6 {[%clk 0:02:34.4]} 14. e4
{[%clk 0:01:15.7]} 14... Bf6 {[%clk 0:02:31.1]} 15. Rb1 {[%clk 0:01:12]} 15...
Re8 {[%clk 0:02:12]} 16. Qg4 {[%clk 0:00:56.6]} 16... Nd7 {[%clk 0:01:56.5]} 17.
Nf5 {[%clk 0:00:55.4]} 17... Nxf5 {[%clk 0:01:45.6]} 18. Qxf5 {[%clk 0:00:54.7]}
18... Bd4 {[%clk 0:01:40.6]} 19. Kh1 {[%clk 0:00:41.3]} 19... Ne5 {[%clk
0:01:20.6]} 20. Bb2 {[%clk 0:00:20.5]} 20... g6 {[%clk 0:01:13.5]} 21. Qh3
{[%clk 0:00:18.5]} 21... Bxb2 {[%clk 0:01:05.7]} 22. Rxb2 {[%clk 0:00:19.4]}
22... Qf6 {[%clk 0:01:01]} 23. Rc2 {[%clk 0:00:18.5]} 23... Nd3 {[%clk
0:00:52.4]} 24. f4 {[%clk 0:00:17]} 24... Nb4 {[%clk 0:00:50]} 25. e5 {[%clk
0:00:14.8]} 25... Qf5 {[%clk 0:00:40.7]} 26. Qxf5 {[%clk 0:00:13.1]} 26... gxf5
{[%clk 0:00:41.6]} 27. Rd2 {[%clk 0:00:13.5]} 27... Rad8 {[%clk 0:00:38.9]} 28.
a3 {[%clk 0:00:13.3]} 28... Na6 {[%clk 0:00:37.2]} 29. Bh3 {[%clk 0:00:13.7]}
29... f6 {[%clk 0:00:32]} 30. e6 {[%clk 0:00:12.7]} 30... Rxe6 {[%clk
0:00:29.4]} 31. dxe6 {[%clk 0:00:11.4]} 31... Rxd2 {[%clk 0:00:29.3]} 32. Bxf5
{[%clk 0:00:12.3]} 32... Nc7 {[%clk 0:00:23.1]} 33. Re1 {[%clk 0:00:09.9]} 33...
Rd5 {[%clk 0:00:16.8]} 34. Be4 {[%clk 0:00:06.5]} 34... Rd6 {[%clk 0:00:14.5]}
35. f5 {[%clk 0:00:05.9]} 35... Kf8 {[%clk 0:00:14.5]} 36. g4 {[%clk 0:00:05.8]}
36... Ke7 {[%clk 0:00:14.9]} 37. Re2 {[%clk 0:00:06.2]} 37... Rd4 {[%clk
0:00:15.2]} 38. Kg2 {[%clk 0:00:06]} 38... Nb5 {[%clk 0:00:15.6]} 39. Re3 {[%clk
0:00:05]} 39... Nd6 {[%clk 0:00:15.7]} 40. Bc6 {[%clk 0:00:04.3]} 40... Nc4
{[%clk 0:00:15.6]} 41. Rg3 {[%clk 0:00:03.5]} 41... Ne5 {[%clk 0:00:15.7]} 42.
Bf3 {[%clk 0:00:03.4]} 42... Rd2+ {[%clk 0:00:14.4]} 43. Kg1 {[%clk 0:00:03.3]}
43... c4 {[%clk 0:00:14.8]} 44. h4 {[%clk 0:00:02.9]} 44... c3 {[%clk 0:00:15]}
45. Be4 {[%clk 0:00:03.3]} 45... c2 {[%clk 0:00:15]} 46. Bxc2 {[%clk 0:00:03.7]}
46... Rxc2 {[%clk 0:00:15.4]} 47. g5 {[%clk 0:00:04.6]} 47... fxg5 {[%clk
0:00:14.8]} 48. hxg5 {[%clk 0:00:05.5]} 48... Rc1+ {[%clk 0:00:14]} 49. Kg2
{[%clk 0:00:05.3]} 49... Rc4 {[%clk 0:00:12.9]} 50. g6 {[%clk 0:00:04.3]} 50...
hxg6 {[%clk 0:00:11.1]} 51. fxg6 {[%clk 0:00:05.2]} 51... Rc8 {[%clk 0:00:10.5]}
52. Rg5 {[%clk 0:00:04.8]} 52... Nc6 {[%clk 0:00:09.9]} 53. g7 {[%clk
0:00:04.1]} 53... Rg8 {[%clk 0:00:10.3]} 54. Rg6 {[%clk 0:00:04.1]} 54... Nd8
{[%clk 0:00:10.6]} 55. Kf3 {[%clk 0:00:02.9]} 55... Nxe6 {[%clk 0:00:11.1]} 56.
Ke4 {[%clk 0:00:03.2]} 56... Rxg7 {[%clk 0:00:11.6]} 57. Rxg7+ {[%clk
0:00:02.2]} 57... Nxg7 {[%clk 0:00:11.5]} 58. Kd5 {[%clk 0:00:03.1]} 58... Kd7
{[%clk 0:00:11.8]} 59. Kc4 {[%clk 0:00:03.2]} 59... Kc7 {[%clk 0:00:12.3]} 60.
Kb4 {[%clk 0:00:04.1]} 60... Ne8 {[%clk 0:00:12.1]} 61. a4 {[%clk 0:00:05]}
61... Nd6 {[%clk 0:00:12.7]} 62. a5 {[%clk 0:00:05.9]} 62... b5 {[%clk
0:00:13.1]} 63. a6 {[%clk 0:00:06.3]} 63... Kb6 {[%clk 0:00:13.2]} 0-1

[Event "*** Titled Tuesday Blitz"]
[Site "Chess.com"]
[Date "2021.02.09"]
[Round "9"]
[White "Happy1712Drummer"]
[Black "rogapa"]
[Result "1/2-1/2"]
[WhiteElo "2418"]
[BlackElo "2717"]
[TimeControl "180+1"]
[EndTime "11:45:52 PST"]
[Termination "Game drawn by stalemate"]

1. Nf3 {[%clk 0:02:59.9]} 1... d5 {[%clk 0:02:58.8]} 2. e3 {[%clk 0:02:57.7]}
2... e6 {[%clk 0:02:59.7]} 3. c4 {[%clk 0:02:57.6]} 3... Nf6 {[%clk 0:03:00.6]}
4. d4 {[%clk 0:02:57.6]} 4... Be7 {[%clk 0:03:01.5]} 5. Nc3 {[%clk 0:02:57.7]}
5... O-O {[%clk 0:03:01.3]} 6. b3 {[%clk 0:02:57]} 6... dxc4 {[%clk 0:02:58.8]}
7. bxc4 {[%clk 0:02:54.7]} 7... c5 {[%clk 0:02:58.1]} 8. d5 {[%clk 0:02:48.1]}
8... exd5 {[%clk 0:02:56.6]} 9. cxd5 {[%clk 0:02:43.1]} 9... Bg4 {[%clk
0:02:48.5]} 10. Be2 {[%clk 0:02:37.1]} 10... Bd6 {[%clk 0:02:47.9]} 11. h3
{[%clk 0:02:33.9]} 11... Bh5 {[%clk 0:02:41.7]} 12. Qb3 {[%clk 0:02:30.4]} 12...
Nbd7 {[%clk 0:02:39.5]} 13. O-O {[%clk 0:02:27.4]} 13... Ne5 {[%clk 0:02:08.9]}
14. g4 {[%clk 0:01:12]} 14... Bg6 {[%clk 0:02:03.5]} 15. Nd2 {[%clk 0:00:58.6]}
15... Nd3 {[%clk 0:01:55.9]} 16. f4 {[%clk 0:00:55.3]} 16... Qe7 {[%clk
0:01:17.5]} 17. Nc4 {[%clk 0:00:51.6]} 17... Nxc1 {[%clk 0:01:17]} 18. Raxc1
{[%clk 0:00:48]} 18... h6 {[%clk 0:01:14.8]} 19. Nxd6 {[%clk 0:00:33.4]} 19...
Qxd6 {[%clk 0:01:15.7]} 20. Qxb7 {[%clk 0:00:33.6]} 20... Rfe8 {[%clk
0:01:00.6]} 21. Qc6 {[%clk 0:00:29.6]} 21... Qe7 {[%clk 0:00:59.2]} 22. Rf3
{[%clk 0:00:26.4]} 22... Rac8 {[%clk 0:00:58.4]} 23. Qa6 {[%clk 0:00:23.8]}
23... Be4 {[%clk 0:00:55.7]} 24. Nxe4 {[%clk 0:00:19.7]} 24... Nxe4 {[%clk
0:00:56.6]} 25. Bd3 {[%clk 0:00:15.4]} 25... Nd2 {[%clk 0:00:50.7]} 26. Rg3
{[%clk 0:00:14.9]} 26... c4 {[%clk 0:00:50.9]} 27. Bc2 {[%clk 0:00:13.6]} 27...
c3 {[%clk 0:00:49.1]} 28. e4 {[%clk 0:00:12.4]} 28... Qc5+ {[%clk 0:00:47.4]}
29. Kg2 {[%clk 0:00:12]} 29... Nxe4 {[%clk 0:00:46]} 30. Bxe4 {[%clk 0:00:11.4]}
30... Rxe4 {[%clk 0:00:46.9]} 31. Rgxc3 {[%clk 0:00:11.6]} 31... Qxc3 {[%clk
0:00:33.9]} 32. Qxc8+ {[%clk 0:00:10.8]} 32... Qxc8 {[%clk 0:00:32.7]} 33. Rxc8+
{[%clk 0:00:11.7]} 33... Kh7 {[%clk 0:00:32.3]} 34. Rc7 {[%clk 0:00:11.6]} 34...
Rxf4 {[%clk 0:00:31.7]} 35. Rxa7 {[%clk 0:00:10.7]} 35... f5 {[%clk 0:00:30.3]}
36. gxf5 {[%clk 0:00:09.2]} 36... Rxf5 {[%clk 0:00:29.8]} 37. d6 {[%clk
0:00:09.7]} 37... Rd5 {[%clk 0:00:29.6]} 38. d7 {[%clk 0:00:10.1]} 38... Kg6
{[%clk 0:00:29.6]} 39. Kf3 {[%clk 0:00:10.3]} 39... Kf6 {[%clk 0:00:28.3]} 40.
Ke4 {[%clk 0:00:10.5]} 40... Rd1 {[%clk 0:00:26.9]} 41. a4 {[%clk 0:00:10.5]}
41... g5 {[%clk 0:00:24.8]} 42. a5 {[%clk 0:00:10.5]} 42... Ke7 {[%clk 0:00:21]}
43. Kf5 {[%clk 0:00:09]} 43... Rd3 {[%clk 0:00:18]} 44. Kg4 {[%clk 0:00:06.8]}
44... Rd4+ {[%clk 0:00:17.8]} 45. Kg3 {[%clk 0:00:07]} 45... h5 {[%clk
0:00:14.4]} 46. a6 {[%clk 0:00:06.3]} 46... Rd3+ {[%clk 0:00:15.1]} 47. Kg2
{[%clk 0:00:06]} 47... Rd2+ {[%clk 0:00:14]} 48. Kg3 {[%clk 0:00:06.1]} 48...
Rd3+ {[%clk 0:00:14.1]} 49. Kg2 {[%clk 0:00:06.3]} 49... h4 {[%clk 0:00:13.7]}
50. d8=Q+ {[%clk 0:00:05.6]} 50... Kxd8 {[%clk 0:00:12]} 51. Rg7 {[%clk
0:00:06.1]} 51... Rg3+ {[%clk 0:00:11.1]} 52. Kh2 {[%clk 0:00:06.2]} 52... Ra3
{[%clk 0:00:10.1]} 53. a7 {[%clk 0:00:06]} 53... Kc8 {[%clk 0:00:09.7]} 54. Rxg5
{[%clk 0:00:03.2]} 54... Rxa7 {[%clk 0:00:08.8]} 55. Rg8+ {[%clk 0:00:03.3]}
55... Kb7 {[%clk 0:00:04.8]} 56. Rg7+ {[%clk 0:00:04.2]} 56... Kb6 {[%clk
0:00:05.3]} 57. Rxa7 {[%clk 0:00:04.6]} 57... Kxa7 {[%clk 0:00:06.2]} 58. Kg2
{[%clk 0:00:04.8]} 58... Kb6 {[%clk 0:00:07.1]} 59. Kf3 {[%clk 0:00:05.2]} 59...
Kc7 {[%clk 0:00:08]} 60. Kg4 {[%clk 0:00:05.8]} 60... Kd7 {[%clk 0:00:08.9]} 61.
Kxh4 {[%clk 0:00:06.5]} 61... Ke7 {[%clk 0:00:09.8]} 62. Kg5 {[%clk 0:00:07.2]}
62... Kf8 {[%clk 0:00:10.7]} 63. Kh6 {[%clk 0:00:07.8]} 63... Kg8 {[%clk
0:00:11.4]} 64. h4 {[%clk 0:00:08.7]} 64... Kh8 {[%clk 0:00:11]} 65. h5 {[%clk
0:00:09.6]} 65... Kg8 {[%clk 0:00:11.5]} 66. Kg6 {[%clk 0:00:10.5]} 66... Kh8
{[%clk 0:00:12.1]} 67. h6 {[%clk 0:00:11.4]} 67... Kg8 {[%clk 0:00:11.7]} 68.
h7+ {[%clk 0:00:11.5]} 68... Kh8 {[%clk 0:00:12.6]} 69. Kh6 {[%clk 0:00:12.2]}
1/2-1/2

[Event "*** Titled Tuesday Blitz"]
[Site "Chess.com"]
[Date "2021.02.09"]
[Round "9"]
[White "rpragchess"]
[Black "BilodeauA"]
[Result "0-1"]
[WhiteElo "2867"]
[BlackElo "2912"]
[TimeControl "180+1"]
[EndTime "11:45:58 PST"]
[Termination "BilodeauA won by resignation"]

1. Nc3 {[%clk 0:03:00.9]} 1... e5 {[%clk 0:02:57.1]} 2. Nf3 {[%clk 0:02:57.5]}
2... Nc6 {[%clk 0:02:53.6]} 3. g3 {[%clk 0:02:50.7]} 3... d5 {[%clk 0:02:50.9]}
4. d3 {[%clk 0:02:51.1]} 4... Nf6 {[%clk 0:02:50.7]} 5. Bg2 {[%clk 0:02:51.3]}
5... d4 {[%clk 0:02:45.3]} 6. Nb1 {[%clk 0:02:50.6]} 6... Bc5 {[%clk 0:02:41.2]}
7. Bg5 {[%clk 0:02:49.1]} 7... h6 {[%clk 0:02:40.2]} 8. Bxf6 {[%clk 0:02:49.4]}
8... Qxf6 {[%clk 0:02:41.1]} 9. O-O {[%clk 0:02:47.7]} 9... O-O {[%clk
0:02:41.1]} 10. c3 {[%clk 0:02:46.9]} 10... Re8 {[%clk 0:02:31.2]} 11. Nfd2
{[%clk 0:02:45.9]} 11... Bb6 {[%clk 0:02:27.7]} 12. Na3 {[%clk 0:02:39.2]} 12...
Bg4 {[%clk 0:02:27]} 13. Nac4 {[%clk 0:02:39.2]} 13... Rad8 {[%clk 0:02:24.3]}
14. h3 {[%clk 0:01:58.8]} 14... Bh5 {[%clk 0:02:24.6]} 15. g4 {[%clk 0:01:54.6]}
15... Bg6 {[%clk 0:02:24.8]} 16. a4 {[%clk 0:01:54.4]} 16... a6 {[%clk
0:02:16.9]} 17. Nxb6 {[%clk 0:01:51.1]} 17... cxb6 {[%clk 0:02:17]} 18. Qb3
{[%clk 0:01:51.8]} 18... Na5 {[%clk 0:02:04.9]} 19. Qa3 {[%clk 0:01:51.7]} 19...
h5 {[%clk 0:02:03.6]} 20. gxh5 {[%clk 0:01:25.6]} 20... Bxh5 {[%clk 0:02:04.5]}
21. Ne4 {[%clk 0:01:26.2]} 21... Qh6 {[%clk 0:01:53.9]} 22. Ng3 {[%clk
0:01:23.6]} 22... Bg6 {[%clk 0:01:52.2]} 23. b4 {[%clk 0:01:21.4]} 23... Nc6
{[%clk 0:01:51]} 24. b5 {[%clk 0:01:21.8]} 24... axb5 {[%clk 0:01:46.1]} 25.
axb5 {[%clk 0:01:21.8]} 25... Ne7 {[%clk 0:01:46.4]} 26. Qc1 {[%clk 0:01:11.9]}
26... Qh4 {[%clk 0:01:44]} 27. c4 {[%clk 0:00:47.6]} 27... Nf5 {[%clk
0:01:42.3]} 28. Ne4 {[%clk 0:00:47.5]} 28... Nh6 {[%clk 0:01:37.9]} 29. Qg5
{[%clk 0:00:44.7]} 29... Qf4 {[%clk 0:01:29.9]} 30. h4 {[%clk 0:00:38.1]} 30...
Nf5 {[%clk 0:01:23.2]} 31. Ra7 {[%clk 0:00:20.4]} 31... Nxh4 {[%clk 0:01:21.2]}
32. Qxf4 {[%clk 0:00:20.6]} 32... exf4 {[%clk 0:01:21.6]} 33. Rxb7 {[%clk
0:00:21.3]} 33... Nxg2 {[%clk 0:01:21.6]} 34. Rxb6 {[%clk 0:00:19.3]} 34... Bxe4
{[%clk 0:01:11.8]} 35. dxe4 {[%clk 0:00:19.3]} 35... f3 {[%clk 0:01:12.6]} 36.
exf3 {[%clk 0:00:17.2]} 36... Nf4 {[%clk 0:01:13.2]} 37. Kh2 {[%clk 0:00:16]}
37... d3 {[%clk 0:01:09.5]} 38. Rd1 {[%clk 0:00:16.1]} 38... d2 {[%clk
0:01:08.8]} 39. c5 {[%clk 0:00:16.4]} 39... Re5 {[%clk 0:01:08.3]} 40. Rd6
{[%clk 0:00:16]} 40... Rb8 {[%clk 0:00:47.9]} 41. c6 {[%clk 0:00:13.5]} 41...
Rexb5 {[%clk 0:00:37.3]} 42. c7 {[%clk 0:00:12.2]} 42... Rf8 {[%clk 0:00:33.7]}
43. Rd8 {[%clk 0:00:12]} 43... Rc5 {[%clk 0:00:33.8]} 44. R1xd2 {[%clk
0:00:06.9]} 44... Rxc7 {[%clk 0:00:33.5]} 45. Rxf8+ {[%clk 0:00:07]} 45... Kxf8
{[%clk 0:00:33.9]} 46. Kg3 {[%clk 0:00:07.9]} 46... Ne6 {[%clk 0:00:29.6]} 47.
Ra2 {[%clk 0:00:07.9]} 47... g6 {[%clk 0:00:28.5]} 48. f4 {[%clk 0:00:07.5]}
48... Rc3+ {[%clk 0:00:26.9]} 49. Kg4 {[%clk 0:00:07.9]} 49... Rc4 {[%clk
0:00:26.9]} 50. f3 {[%clk 0:00:08.1]} 50... Nd4 {[%clk 0:00:25.7]} 51. Ra6
{[%clk 0:00:06.3]} 51... Kg7 {[%clk 0:00:26.1]} 52. Rd6 {[%clk 0:00:05.1]} 52...
Ra4 {[%clk 0:00:26.2]} 53. Rd5 {[%clk 0:00:04.4]} 53... Nc2 {[%clk 0:00:26.5]}
54. Kg3 {[%clk 0:00:04.2]} 54... Nd4 {[%clk 0:00:22]} 55. f5 {[%clk 0:00:03.8]}
55... gxf5 {[%clk 0:00:20.7]} 56. exf5 {[%clk 0:00:04.7]} 56... Nc6 {[%clk
0:00:18.6]} 57. Rd6 {[%clk 0:00:03.8]} 57... Ne5 {[%clk 0:00:17]} 58. f4 {[%clk
0:00:04.1]} 58... Nc4 {[%clk 0:00:16.4]} 59. Rd3 {[%clk 0:00:03.3]} 59... Ra3
{[%clk 0:00:15]} 60. Rxa3 {[%clk 0:00:02.6]} 60... Nxa3 {[%clk 0:00:15.9]} 61.
Kf3 {[%clk 0:00:03.2]} 61... Kf6 {[%clk 0:00:16.7]} 62. Ke4 {[%clk 0:00:04.1]}
62... Nb5 {[%clk 0:00:17.3]} 63. Kd5 {[%clk 0:00:03.3]} 63... Kxf5 {[%clk
0:00:17.6]} 64. Kc5 {[%clk 0:00:03.9]} 64... Nc7 {[%clk 0:00:15.6]} 65. Kd6
{[%clk 0:00:03.7]} 65... Ne6 {[%clk 0:00:16]} 66. Ke7 {[%clk 0:00:03.8]} 66...
f6 {[%clk 0:00:16.7]} 67. Kf7 {[%clk 0:00:04.3]} 67... Nxf4 {[%clk 0:00:17.1]}
0-1

[Event "*** Titled Tuesday Blitz"]
[Site "Chess.com"]
[Date "2021.02.09"]
[Round "9"]
[White "Beca95"]
[Black "Supernotar"]
[Result "1-0"]
[WhiteElo "2915"]
[BlackElo "2810"]
[TimeControl "180+1"]
[EndTime "11:45:58 PST"]
[Termination "Beca95 won on time"]

1. d4 {[%clk 0:03:00.9]} 1... d5 {[%clk 0:03:00]} 2. c4 {[%clk 0:03:00.5]} 2...
dxc4 {[%clk 0:03:00.5]} 3. Nf3 {[%clk 0:02:58.8]} 3... Nf6 {[%clk 0:03:00.8]} 4.
e3 {[%clk 0:02:59.2]} 4... e6 {[%clk 0:03:01.4]} 5. Bxc4 {[%clk 0:02:59.2]} 5...
a6 {[%clk 0:03:01.9]} 6. a4 {[%clk 0:02:56]} 6... c5 {[%clk 0:03:01.7]} 7. O-O
{[%clk 0:02:56.1]} 7... Nc6 {[%clk 0:03:01.5]} 8. Qe2 {[%clk 0:02:54.9]} 8...
cxd4 {[%clk 0:03:01.9]} 9. Rd1 {[%clk 0:02:55]} 9... Be7 {[%clk 0:03:02.5]} 10.
exd4 {[%clk 0:02:54.9]} 10... O-O {[%clk 0:03:02.6]} 11. Nc3 {[%clk 0:02:55.1]}
11... Nb4 {[%clk 0:03:02.9]} 12. Ne5 {[%clk 0:02:52.2]} 12... Bd7 {[%clk
0:03:03.2]} 13. h4 {[%clk 0:02:44.2]} 13... Bc6 {[%clk 0:03:03]} 14. Bg5 {[%clk
0:02:41.4]} 14... Bd5 {[%clk 0:02:54]} 15. Nxd5 {[%clk 0:02:20.3]} 15... Nfxd5
{[%clk 0:02:53.8]} 16. Nf3 {[%clk 0:01:49.3]} 16... h6 {[%clk 0:02:49.5]} 17.
Bxe7 {[%clk 0:01:48.4]} 17... Qxe7 {[%clk 0:02:48.8]} 18. Rac1 {[%clk
0:01:48.4]} 18... Rfd8 {[%clk 0:02:44.2]} 19. g3 {[%clk 0:01:48.1]} 19... Rac8
{[%clk 0:02:39]} 20. Kg2 {[%clk 0:01:45.8]} 20... Qf6 {[%clk 0:02:37.7]} 21. Qe5
{[%clk 0:01:44.9]} 21... Qe7 {[%clk 0:02:33.2]} 22. Qe2 {[%clk 0:01:44.1]} 22...
Qf6 {[%clk 0:02:30.3]} 23. Ne5 {[%clk 0:01:41.4]} 23... Nb6 {[%clk 0:02:16.2]}
24. Bb3 {[%clk 0:01:26.7]} 24... N6d5 {[%clk 0:02:06.3]} 25. Qf3 {[%clk
0:01:25.3]} 25... Qxf3+ {[%clk 0:02:04.2]} 26. Kxf3 {[%clk 0:01:26.2]} 26... Kf8
{[%clk 0:02:02.1]} 27. Rc5 {[%clk 0:01:18.5]} 27... b6 {[%clk 0:01:58.4]} 28.
Rcc1 {[%clk 0:01:12.8]} 28... f6 {[%clk 0:01:51.8]} 29. Nc4 {[%clk 0:01:10.6]}
29... Ke7 {[%clk 0:01:46.9]} 30. Ne3 {[%clk 0:01:09.3]} 30... Kd6 {[%clk
0:01:41.8]} 31. Nc4+ {[%clk 0:01:08.8]} 31... Ke7 {[%clk 0:01:39.1]} 32. h5
{[%clk 0:01:09]} 32... Rc6 {[%clk 0:01:34.1]} 33. Ne3 {[%clk 0:00:55.1]} 33...
Rdc8 {[%clk 0:01:25.7]} 34. Rxc6 {[%clk 0:00:54.3]} 34... Rxc6 {[%clk
0:01:24.1]} 35. Nc4 {[%clk 0:00:47.1]} 35... Kd7 {[%clk 0:01:13]} 36. Rd2 {[%clk
0:00:46.4]} 36... Rc7 {[%clk 0:01:06.3]} 37. Ke4 {[%clk 0:00:38.6]} 37... Nc6
{[%clk 0:00:58.5]} 38. Ne3 {[%clk 0:00:37.5]} 38... Kd6 {[%clk 0:00:51.1]} 39.
Bxd5 {[%clk 0:00:36.7]} 39... exd5+ {[%clk 0:00:51.5]} 40. Kf4 {[%clk
0:00:36.2]} 40... Ne7 {[%clk 0:00:50.6]} 41. Nf5+ {[%clk 0:00:35.8]} 41... Nxf5
{[%clk 0:00:50.4]} 42. Kxf5 {[%clk 0:00:36.7]} 42... Ke7 {[%clk 0:00:34.7]} 43.
Kg6 {[%clk 0:00:34.1]} 43... Kf8 {[%clk 0:00:34.7]} 44. Re2 {[%clk 0:00:32.3]}
44... Rc4 {[%clk 0:00:27.2]} 45. Re6 {[%clk 0:00:31.9]} 45... Rxd4 {[%clk
0:00:22.1]} 46. Rxb6 {[%clk 0:00:31.6]} 46... Rg4+ {[%clk 0:00:21.2]} 47. Kf5
{[%clk 0:00:29.4]} 47... Rxa4 {[%clk 0:00:19.6]} 48. f4 {[%clk 0:00:26.1]} 48...
Kg8 {[%clk 0:00:16.6]} 49. Kg6 {[%clk 0:00:25]} 49... Kf8 {[%clk 0:00:14]} 50.
Rb8+ {[%clk 0:00:20.4]} 50... Ke7 {[%clk 0:00:14.3]} 51. Kxg7 {[%clk 0:00:20]}
51... d4 {[%clk 0:00:14.8]} 52. Rb3 {[%clk 0:00:18.9]} 52... Ke6 {[%clk
0:00:10.8]} 53. Kxh6 {[%clk 0:00:17.7]} 53... Kf5 {[%clk 0:00:11.3]} 54. Kg7
{[%clk 0:00:12.8]} 54... Rc4 {[%clk 0:00:10.7]} 55. Rb7 {[%clk 0:00:13.1]} 55...
Ke4 {[%clk 0:00:08.4]} 56. Re7+ {[%clk 0:00:12]} 56... Kf3 {[%clk 0:00:08.3]}
57. h6 {[%clk 0:00:12.2]} 57... d3 {[%clk 0:00:08.5]} 58. h7 {[%clk 0:00:12]}
58... d2 {[%clk 0:00:08.4]} 59. Rd7 {[%clk 0:00:12.1]} 59... Rc7 {[%clk
0:00:06.8]} 60. Rxc7 {[%clk 0:00:11.8]} 60... d1=Q {[%clk 0:00:07.3]} 61. h8=Q
{[%clk 0:00:11.9]} 61... Qd6 {[%clk 0:00:06.5]} 62. Qh5+ {[%clk 0:00:11.5]}
62... Ke3 {[%clk 0:00:03.7]} 63. Qc5+ {[%clk 0:00:11.1]} 1-0